bitfinex-derivatives/quotes_BTCF0:USTF0_20210111
["timestamp","ask_amount","ask_price","bid_price","bid_amount"]
[1610377316362,1.13632608,33590.0,33589.0,0.12199]
[1610377318361,0.72742608,33590.0,33589.0,0.12199]
[1610377318563,0.5911,33590.0,33589.0,0.12199]
[1610377319766,0.72742608,33590.0,33589.0,0.12199]
[1610377322167,0.5911,33590.0,33589.0,0.12199]
[1610377323869,0.72742608,33590.0,33589.0,0.12199]
[1610377324068,0.5911,33590.0,33589.0,0.12199]
[1610377325770,0.72742608,33590.0,33589.0,0.12199]
[1610377327171,0.5911,33590.0,33589.0,0.12199]
[1610377327771,0.72742608,33590.0,33589.0,0.12199]
[1610377332581,0.81552608,33590.0,33589.0,0.12199]
[1610377332780,0.6792,33590.0,33589.0,0.12199]
[1610377333780,0.72742608,33590.0,33589.0,0.12199]
[1610377334782,0.81642608,33590.0,33589.0,0.12199]
[1610377334981,0.72742608,33590.0,33589.0,0.12199]
[1610377335785,0.72742608,33590.0,33589.0,0.03149]
[1610377335985,0.72742608,33590.0,33567.0,0.13632608]
[1610377336185,0.72742608,33590.0,33559.0,0.10071]
[1610377336385,0.72742608,33590.0,33539.0,4.8459]
[1610377337284,0.6907,33573.0,33542.0,4.3215]
[1610377337484,0.6907,33573.0,33522.0,2.5167162]
[1610377337485,0.0887,33591.0,33525.0,2.15868236]
[1610377337686,0.0887,33591.0,33525.0,2.26424236]
[1610377337886,0.0887,33591.0,33526.0,2.15865634]
[1610377338186,0.0887,33591.0,33525.0,0.10556]
[1610377340189,0.0887,33591.0,33553.0,0.13632608]
[1610377340387,1.0,33580.0,33553.0,0.13632608]
[1610377340586,0.0894,33579.0,33553.0,0.13632608]
[1610377340988,1.0,33580.0,33553.0,0.13632608]
[1610377341190,1.0,33580.0,33553.0,0.24190608]
[1610377341591,1.0,33580.0,33553.0,0.10558]
[1610377342192,1.0,33580.0,33562.0,0.13632608]
[1610377342392,1.0,33583.0,33562.0,0.24382608]
[1610377342594,1.0,33583.0,33562.0,0.1075]
[1610377342795,3.9812,33572.0,33562.0,0.1075]
[1610377344597,3.9812,33572.0,33571.0,0.13632608]
[1610377344799,3.9812,33572.0,33571.0,0.24251608]
[1610377344997,3.9812,33572.0,33571.0,0.10619]
[1610377345401,4.2309,33595.0,33571.0,0.10619]
[1610377346600,4.2309,33595.0,33594.0,0.13632608]
[1610377346800,4.2309,33595.0,33594.0,0.21886608]
[1610377347804,4.2309,33595.0,33594.0,0.08254]
[1610377348806,0.3179,33626.0,33594.0,0.21886608]
[1610377350810,0.3179,33626.0,33618.0,0.13632608]
[1610377351010,0.13632608,33629.0,33618.0,0.13632608]
[1610377351210,0.13632608,33629.0,33618.0,0.21093608]
[1610377352611,0.13632608,33629.0,33618.0,0.07461]
[1610377352813,1.5,33652.0,33618.0,0.07461]
[1610377353411,0.13632608,33619.0,33606.0,0.08281]
[1610377353812,0.20880608,33619.0,33606.0,0.08281]
[1610377354613,0.03,33617.0,33594.0,0.08254]
[1610377354813,0.03,33617.0,33571.0,0.10619]
[1610377355013,0.03,33617.0,33562.0,0.1075]
[1610377355213,0.03,33617.0,32005.0,0.54478492]
[1610377355214,0.03,33617.0,33551.0,2.33006047]
[1610377355413,0.03,33617.0,33537.0,3.04700215]
[1610377355414,0.13632608,33597.0,33590.0,0.13632608]
[1610377355815,0.2846,33615.0,33547.0,2.32999919]
[1610377356014,0.10557,33611.0,33547.0,2.40636919]
[1610377356216,0.10557,33611.0,33547.0,0.07637]
[1610377356415,1.0,33607.0,33547.0,0.07637]
[1610377357616,1.0,33607.0,33589.0,0.13632608]
[1610377358215,1.0,33607.0,33588.0,0.07503]
[1610377359816,1.0,33607.0,33606.0,0.13632608]
[1610377360017,1.0,33607.0,33606.0,0.23605608]
[1610377360415,0.03,33617.0,33606.0,0.23605608]
[1610377361819,0.16632608,33617.0,33616.0,0.13632608]
[1610377362019,0.16632608,33617.0,33616.0,0.20791608]
[1610377363023,0.03,33617.0,33616.0,0.20791608]
[1610377364822,0.03,33617.0,33616.0,0.07159]
[1610377365222,3.4881,33668.0,33616.0,0.07159]
[1610377365822,3.4881,33668.0,33650.0,0.13632608]
[1610377366022,3.4881,33668.0,33650.0,0.22518608]
[1610377366225,3.4881,33668.0,33650.0,0.08886]
[1610377367223,3.4881,33668.0,33643.0,0.09012]
[1610377367424,0.3918,33667.0,33643.0,0.09012]
[1610377369024,0.3918,33667.0,33616.0,0.07159]
[1610377369224,0.3918,33667.0,33606.0,0.09973]
[1610377369425,0.3918,33667.0,33589.0,0.2334]
[1610377369825,0.3918,33667.0,33633.0,0.13632608]
[1610377370025,0.3918,33667.0,33630.0,0.0959]
[1610377370425,1.0,33645.0,33630.0,0.0959]
[1610377370625,1.07028,33645.0,33630.0,0.0959]
[1610377371025,1.07028,33645.0,33621.0,4.8012]
[1610377371627,1.0,33645.0,33621.0,4.8012]
[1610377371826,0.13632608,33625.0,33621.0,4.8012]
[1610377372227,1.0,33645.0,33621.0,4.8012]
[1610377372426,0.1556,33656.0,33621.0,4.8894]
[1610377374032,0.1556,33656.0,33643.0,0.13632608]
[1610377374229,0.08836,33657.0,33643.0,0.13632608]
[1610377374629,0.2965,33677.0,33643.0,0.13632608]
[1610377374830,0.2965,33677.0,33640.0,0.06877]
[1610377375234,0.4801,33667.0,33640.0,0.06877]
[1610377375838,0.1622,33667.0,33640.0,0.06877]
[1610377376032,0.1622,33667.0,33649.0,0.13632608]
[1610377376434,0.1622,33667.0,33640.0,0.06877]
[1610377377037,0.1622,33667.0,33621.0,4.8894]
[1610377377838,1.5,33666.0,33621.0,4.8894]
[1610377378036,0.1622,33667.0,33623.0,0.13632608]
[1610377378436,0.5135,33662.0,33624.0,4.8209]
[1610377378636,0.0901,33661.0,33624.0,4.8209]
[1610377380037,0.13632608,33646.0,33645.0,0.13632608]
[1610377381237,0.22632608,33646.0,33645.0,0.13632608]
[1610377381437,0.09,33646.0,33645.0,0.13632608]
[1610377381637,0.07737,33650.0,33645.0,0.13632608]
[1610377381839,0.07737,33650.0,33633.0,0.10511]
[1610377382237,0.10384,33651.0,33621.0,0.01431]
[1610377382437,0.13632608,33622.0,33612.0,0.11179]
[1610377382637,1.63632608,33622.0,33612.0,0.11179]
[1610377382837,1.63632608,33622.0,33612.0,0.05319]
[1610377383036,1.63632608,33622.0,33568.0,2.22889252]
[1610377383237,1.63632608,33622.0,33558.0,2.22648634]
[1610377383437,1.5,33622.0,33558.0,2.22648634]
[1610377383637,1.5,33621.0,33543.0,2.23450235]
[1610377384037,1.5,33621.0,33530.0,2.92204154]
[1610377384038,1.5,33621.0,33529.0,2.24658542]
[1610377384440,0.13632608,33544.0,33538.0,0.13632608]
[1610377384636,0.07619,33557.0,33538.0,0.13632608]
[1610377385038,0.07619,33557.0,33533.0,0.07031]
[1610377386238,0.08902,33565.0,33533.0,0.07031]
[1610377386445,0.08902,33565.0,33564.0,0.13632608]
[1610377387439,0.08766,33584.0,33561.0,0.09385]
[1610377387847,0.08766,33584.0,33550.0,0.09082]
[1610377388443,0.13632608,33551.0,33550.0,0.09082]
[1610377389446,0.08516,33571.0,33550.0,0.09082]
[1610377390447,0.13632608,33551.0,33543.0,0.10738]
[1610377391448,0.13632608,33551.0,33533.0,0.07031]
[1610377391649,0.13632608,33551.0,33486.0,2.12460204]
[1610377392048,0.13632608,33551.0,33485.0,2.12464508]
[1610377392250,1.5,33550.0,33485.0,2.12464508]
[1610377392449,0.13632608,33512.0,33505.0,0.13632608]
[1610377392649,2.5,33542.0,33505.0,0.13632608]
[1610377392849,2.5,33542.0,33505.0,0.06843]
[1610377393049,1.0,33542.0,33505.0,0.06843]
[1610377393450,0.2998,33540.0,33505.0,0.06843]
[1610377393652,0.39494,33540.0,33505.0,0.06843]
[1610377394153,1.5,33539.0,33505.0,0.06843]
[1610377395156,1.5,33539.0,33450.0,2.64918182]
[1610377395157,1.5,33539.0,33450.0,2.11968537]
[1610377395553,0.2968,33538.0,33444.0,2.1159495]
[1610377395753,1.5,33537.0,33444.0,2.1159495]
[1610377395953,0.13632608,33473.0,33471.0,0.13632608]
[1610377396352,0.10587,33503.0,33471.0,0.13632608]
[1610377396754,0.10587,33503.0,33471.0,0.23061608]
[1610377396953,0.0905,33502.0,33471.0,0.09429]
[1610377397154,0.10587,33503.0,33471.0,0.09429]
[1610377397956,0.13632608,33486.0,33482.0,0.13632608]
[1610377398156,0.296,33519.0,33482.0,0.13632608]
[1610377398157,0.10341,33511.0,33482.0,0.13632608]
[1610377398357,0.10341,33511.0,33482.0,0.0882]
[1610377399157,0.296,33519.0,33482.0,0.0882]
[1610377399960,0.296,33519.0,33518.0,0.13632608]
[1610377400158,0.296,33519.0,33518.0,0.21566608]
[1610377400557,0.10624,33563.0,33519.0,0.02]
[1610377400758,0.28,33596.0,33519.0,0.02]
[1610377401359,0.28,33596.0,33519.0,0.0294]
[1610377401960,0.28,33596.0,33568.0,0.13632608]
[1610377402361,1.78,33596.0,33550.0,0.07291]
[1610377402562,0.37096,33596.0,33550.0,0.07291]
[1610377403760,1.5,33595.0,33550.0,0.07291]
[1610377403960,0.13632608,33551.0,33550.0,0.20923608]
[1610377404361,0.10974,33574.0,33550.0,0.07291]
[1610377405564,0.10974,33574.0,33539.0,0.08596]
[1610377405763,1.5,33573.0,33518.0,0.0618]
[1610377406162,1.5,33573.0,33503.0,0.01]
[1610377406365,0.13632608,33504.0,33503.0,0.0037]
[1610377406765,1.0,33519.0,33447.0,2.09967387]
[1610377407164,1.0,33519.0,33482.0,0.09601]
[1610377407564,0.0899,33518.0,33482.0,0.09601]
[1610377408065,1.0,33519.0,33482.0,0.09601]
[1610377408466,0.2783,33528.0,33482.0,0.09601]
[1610377408667,4.358,33514.0,33482.0,0.09601]
[1610377409067,4.358,33514.0,33501.0,0.13632608]
[1610377409469,4.358,33514.0,33501.0,0.24996608]
[1610377409666,4.358,33514.0,33501.0,0.11364]
[1610377409867,4.358,33514.0,33501.0,0.08214]
[1610377410067,4.358,33514.0,33501.0,4e-05]
[1610377410471,1.5884,33513.0,33489.0,0.06999]
[1610377410673,0.17362,33513.0,33489.0,0.06999]
[1610377410869,0.17362,33513.0,33482.0,0.09601]
[1610377411070,0.13632608,33483.0,33482.0,0.09601]
[1610377411669,0.10278,33498.0,33482.0,0.09601]
[1610377412385,1.0,33483.0,33475.0,0.11354]
[1610377413172,0.13632608,33476.0,33475.0,0.11354]
[1610377413371,0.13632608,33476.0,33453.0,3.5848]
[1610377414371,1.0,33490.0,33453.0,3.5848]
[1610377414570,1.0,33490.0,33453.0,3.67913]
[1610377415172,0.13632608,33477.0,33456.0,0.13632608]
[1610377415374,1.07601,33490.0,33453.0,3.67913]
[1610377416372,0.07601,33490.0,33453.0,3.67913]
[1610377416973,0.07601,33490.0,33453.0,0.09433]
[1610377418374,1.0,33478.0,33453.0,0.09433]
[1610377419176,0.13632608,33454.0,33453.0,0.09433]
[1610377419378,1.0,33478.0,33453.0,0.09433]
[1610377419977,1.0,33478.0,33449.0,0.13632608]
[1610377420377,1.0,33473.0,33449.0,0.13632608]
[1610377421177,1.0,33473.0,33430.0,4.4796]
[1610377421979,1.0,33473.0,33424.0,3.5844]
[1610377422380,0.13632608,33476.0,33472.0,0.13632608]
[1610377422581,3.6978,33483.0,33472.0,0.23826608]
[1610377423181,0.08522,33513.0,33472.0,0.23826608]
[1610377423384,0.2994,33516.0,33472.0,0.23826608]
[1610377423581,0.2994,33516.0,33472.0,0.10194]
[1610377424182,0.2994,33516.0,33472.0,0.19084]
[1610377424381,0.2994,33516.0,33515.0,0.13632608]
[1610377424583,0.2994,33516.0,33515.0,0.23587608]
[1610377424783,0.2994,33516.0,33515.0,0.09955]
[1610377426485,4.5027,33525.0,33515.0,0.09955]
[1610377427086,4.5027,33525.0,33524.0,0.13632608]
[1610377427287,0.2763,33541.0,33524.0,0.24830608]
[1610377428588,0.2763,33541.0,33524.0,0.11198]
[1610377429188,0.13632608,33525.0,33524.0,0.11198]
[1610377429390,0.13632608,33525.0,33524.0,0.05888]
[1610377429588,0.10745,33536.0,33515.0,0.09955]
[1610377429789,0.10745,33536.0,33513.0,4.6144]
[1610377429991,0.10745,33536.0,33513.0,4.5681]
[1610377430192,0.10745,33536.0,33495.0,0.08405]
[1610377431194,0.13632608,33502.0,33495.0,0.08405]
[1610377432994,0.07218,33514.0,33495.0,0.08405]
[1610377433193,0.10745,33536.0,33513.0,0.13632608]
[1610377433393,0.10745,33536.0,33513.0,0.20774608]
[1610377434093,0.10745,33536.0,33513.0,0.07142]
[1610377434493,1.0,33532.0,33513.0,0.07142]
[1610377435094,4.072,33527.0,33520.0,0.13632608]
[1610377435294,4.072,33527.0,33513.0,0.07142]
[1610377436695,0.1556,33540.0,33513.0,0.07142]
[1610377436896,3.87,33554.0,33513.0,0.07142]
[1610377437095,0.13632608,33552.0,33536.0,0.13632608]
[1610377437697,0.13632608,33552.0,33534.0,0.07779]
[1610377437895,0.09318,33547.0,33534.0,0.07779]
[1610377438295,0.09318,33547.0,33513.0,0.07142]
[1610377438495,0.09318,33547.0,33495.0,0.08405]
[1610377438696,0.09318,33547.0,33494.0,4.9457]
[1610377439198,0.09318,33547.0,33516.0,0.13632608]
[1610377439798,0.09318,33547.0,33514.0,0.07307]
[1610377441402,0.13632608,33518.0,33517.0,0.13632608]
[1610377441610,0.0879,33535.0,33517.0,0.13632608]
[1610377442001,0.0879,33535.0,33514.0,0.07307]
[1610377442612,1.0,33518.0,33507.0,0.09016]
[1610377442811,1.0926,33518.0,33494.0,4.9457]
[1610377443402,0.13632608,33495.0,33494.0,4.9457]
[1610377444017,0.08638,33504.0,33494.0,4.9457]
[1610377444202,1.0926,33518.0,33494.0,4.9457]
[1610377444403,0.0926,33518.0,33494.0,4.9457]
[1610377445413,0.13632608,33499.0,33495.0,0.13632608]
[1610377445606,0.13632608,33499.0,33494.0,4.9457]
[1610377446204,0.13632608,33499.0,33443.0,2.1297219]
[1610377446406,0.09673,33503.0,33437.0,2.13022689]
[1610377446605,0.09673,33503.0,33437.0,2.23647689]
[1610377446806,0.09673,33503.0,33437.0,0.10625]
[1610377447007,0.2813,33502.0,33437.0,0.10625]
[1610377447206,1.5,33501.0,33437.0,0.10625]
[1610377447406,0.13632608,33457.0,33443.0,0.13632608]
[1610377448608,0.0891,33456.0,33443.0,0.13632608]
[1610377448809,0.0886,33468.0,33443.0,0.13632608]
[1610377449618,0.0886,33468.0,33437.0,0.10625]
[1610377450811,0.13632608,33450.0,33444.0,0.13632608]
[1610377451413,0.13632608,33450.0,33437.0,0.10625]
[1610377451615,0.13632608,33450.0,33414.0,2.1359193]
[1610377452013,0.0902,33449.0,33412.0,2.13608482]
[1610377452413,0.0902,33449.0,33408.0,2.13546708]
[1610377452814,0.0902,33449.0,33437.0,0.13632608]
[1610377453016,0.0902,33449.0,33437.0,0.21670608]
[1610377453215,0.2791,33469.0,33437.0,0.08038]
[1610377453817,1.5,33468.0,33437.0,0.08038]
[1610377454418,1.0,33449.0,33437.0,0.08038]
[1610377454820,0.13632608,33438.0,33437.0,0.08038]
[1610377455618,0.22472608,33438.0,33437.0,0.08038]
[1610377456018,0.0884,33438.0,33437.0,0.08038]
[1610377456417,0.10579,33460.0,33437.0,0.08038]
[1610377456818,0.13632608,33452.0,33445.0,0.13632608]
[1610377457421,4.3391,33448.0,33445.0,0.13632608]
[1610377457620,4.3391,33448.0,33437.0,0.08038]
[1610377458221,4.3391,33448.0,33405.0,4.5104]
[1610377458421,0.0904,33447.0,33405.0,4.5104]
[1610377458622,4.3391,33448.0,33405.0,4.5104]
[1610377458822,0.13632608,33445.0,33405.0,4.60405]
[1610377460823,0.13632608,33439.0,33421.0,0.13632608]
[1610377462929,0.13632608,33443.0,33438.0,0.13632608]
[1610377463138,4.3391,33448.0,33438.0,0.13632608]
[1610377463139,4.3391,33448.0,33438.0,0.20512608]
[1610377463533,4.3391,33448.0,33438.0,0.0688]
[1610377464425,4.00353,33448.0,33438.0,0.0688]
[1610377464625,3.7148,33478.0,33438.0,0.0688]
[1610377464825,0.13632608,33472.0,33466.0,0.13632608]
[1610377465028,0.2838,33482.0,33438.0,0.0688]
[1610377466826,0.13632608,33458.0,33456.0,0.13632608]
[1610377467227,0.2838,33482.0,33456.0,0.13632608]
[1610377467427,1.47917558,33510.0,33456.0,0.09484]
[1610377467628,0.5546,33506.0,33456.0,0.09484]
[1610377468827,0.5546,33506.0,33504.0,0.13632608]
[1610377469026,0.5546,33506.0,33456.0,0.09484]
[1610377469027,0.5546,33506.0,33494.0,0.09925]
[1610377469235,0.2838,33506.0,33494.0,0.09925]
[1610377469627,0.2838,33506.0,33494.0,0.04755]
[1610377469828,0.2838,33506.0,33494.0,0.02605]
[1610377470027,0.2838,33506.0,33468.0,4.5126]
[1610377470428,1.0,33492.0,33468.0,4.5126]
[1610377471028,1.10806,33492.0,33468.0,4.5126]
[1610377471628,0.13632608,33469.0,33468.0,4.5126]
[1610377472229,1.10806,33492.0,33468.0,4.5126]
[1610377472429,0.10806,33492.0,33468.0,4.61728]
[1610377473229,0.1087,33500.0,33468.0,4.61728]
[1610377474229,0.13632608,33482.0,33468.0,0.10468]
[1610377474629,0.1087,33500.0,33468.0,0.10468]
[1610377474630,0.08666,33489.0,33468.0,0.10468]
[1610377475230,0.08666,33489.0,33456.0,0.09484]
[1610377475434,0.08666,33489.0,33438.0,0.0688]
[1610377475630,0.08666,33489.0,33414.0,2.13369385]
[1610377475831,0.08666,33489.0,33409.0,2.13356744]
[1610377476230,0.13632608,33444.0,33406.0,2.13378879]
[1610377476431,0.13632608,33444.0,33405.0,0.09365]
[1610377476630,0.10179,33466.0,33399.0,2.13364938]
[1610377476831,0.10179,33466.0,33399.0,0.06889]
[1610377477432,0.285,33465.0,33399.0,0.06889]
[1610377478233,0.13632608,33436.0,33421.0,0.13632608]
[1610377479935,1.0,33452.0,33399.0,0.06889]
[1610377480335,1.0,33452.0,33434.0,0.13632608]
[1610377480539,0.10632,33458.0,33434.0,0.0945]
[1610377483637,3.501,33445.0,33434.0,0.0945]
[1610377485039,0.13632608,33435.0,33434.0,0.0945]
[1610377485643,0.13632608,33435.0,33421.0,0.13632608]
[1610377486340,0.13632608,33435.0,33401.0,4.9307]
[1610377487142,0.13632608,33406.0,33401.0,4.9307]
[1610377487342,0.13632608,33406.0,33399.0,0.06889]
[1610377487544,0.13632608,33406.0,33356.0,0.0897]
[1610377487743,0.07651,33436.0,33352.0,2.12870846]
[1610377487944,0.07651,33436.0,33352.0,0.09997]
[1610377488146,0.90564267,33432.0,33352.0,0.09997]
[1610377488343,1.5,33431.0,33352.0,0.09997]
[1610377488544,1.12879239,33428.0,33352.0,0.09997]
[1610377488743,0.90306616,33423.0,33352.0,0.09997]
[1610377488944,1.12572395,33415.0,33352.0,0.02717]
[1610377489145,0.13632608,33353.0,33352.0,0.02717]
[1610377489346,0.07115,33363.0,33300.0,2.12378459]
[1610377489544,0.07115,33363.0,33300.0,2.20086459]
[1610377489745,0.07115,33363.0,33300.0,0.07708]
[1610377490147,0.2777,33362.0,33300.0,0.07708]
[1610377491147,0.2777,33362.0,33301.0,0.0893]
[1610377491547,0.13632608,33354.0,33341.0,0.13632608]
[1610377492747,0.2777,33362.0,33301.0,0.0893]
[1610377492949,0.2777,33362.0,33300.0,0.07708]
[1610377493949,0.2777,33362.0,33337.0,0.13632608]
[1610377494150,0.2777,33362.0,33337.0,0.23924608]
[1610377494351,0.2777,33362.0,33337.0,0.10292]
[1610377496052,0.13632608,33338.0,33337.0,0.10292]
[1610377497052,1.0,33357.0,33337.0,0.10292]
[1610377498052,0.13632608,33354.0,33337.0,0.10292]
[1610377498457,0.2777,33362.0,33337.0,0.10292]
[1610377499158,0.2777,33362.0,33334.0,0.13632608]
[1610377499356,0.1896,33362.0,33337.0,0.0945]
[1610377499557,0.0888,33406.0,33337.0,0.0945]
[1610377499760,0.0906,33420.0,33337.0,0.0945]
[1610377499957,0.78652556,33424.0,33337.0,0.0945]
[1610377500359,0.0889,33460.0,33337.0,0.0945]
[1610377500360,0.2744,33441.0,33337.0,0.0945]
[1610377500560,0.2744,33441.0,33338.0,0.0889]
[1610377500759,0.13632608,33431.0,33428.0,0.13632608]
[1610377500962,0.08057,33438.0,33428.0,0.13632608]
[1610377501559,0.08057,33438.0,33428.0,0.22027608]
[1610377501760,0.08057,33438.0,33428.0,0.21845103]
[1610377501960,0.2744,33441.0,33428.0,0.21845103]
[1610377502159,0.2744,33441.0,33428.0,0.08395]
[1610377502762,0.2744,33441.0,33440.0,0.13632608]
[1610377502961,0.2744,33441.0,33440.0,0.22880608]
[1610377503362,0.2744,33441.0,33440.0,0.09248]
[1610377504162,0.2744,33441.0,33440.0,0.03358]
[1610377504363,0.2744,33441.0,33440.0,0.02368]
[1610377504763,0.2744,33441.0,33440.0,8e-05]
[1610377504963,0.2744,33441.0,33428.0,0.08395]
[1610377505163,0.13632608,33429.0,33428.0,0.08395]
[1610377505364,0.13632608,33429.0,33420.0,0.07857]
[1610377505565,0.10204,33440.0,33420.0,0.07857]
[1610377505763,0.10204,33440.0,33411.0,0.11153]
[1610377506765,1.5,33439.0,33337.0,0.0945]
[1610377506964,1.7459,33439.0,33328.0,2.10264018]
[1610377507166,1.7459,33439.0,33322.0,2.1029921]
[1610377507567,1.7459,33439.0,33317.0,2.10365591]
[1610377507967,1.7459,33439.0,33305.0,2.10446197]
[1610377507968,0.87857389,33435.0,33305.0,2.10446197]
[1610377508167,1.5,33434.0,33305.0,2.10446197]
[1610377508369,0.13632608,33333.0,33319.0,0.13632608]
[1610377508772,1.0,33360.0,33292.0,2.10456519]
[1610377508970,1.0,33360.0,33292.0,2.18911519]
[1610377509369,1.0,33360.0,33292.0,2.27831519]
[1610377509569,0.9865,33360.0,33294.0,2.10367538]
[1610377509771,0.7252,33360.0,33294.0,2.10367538]
[1610377509972,0.2966,33375.0,33300.0,2.1034091]
[1610377510172,0.0899,33424.0,33300.0,2.2023791]
[1610377510373,0.13632608,33399.0,33386.0,0.13632608]
[1610377511773,0.07123,33426.0,33323.0,2.10207158]
[1610377511972,0.09,33425.0,33323.0,2.18977158]
[1610377512173,0.09,33425.0,33326.0,2.10279221]
[1610377512373,0.13632608,33378.0,33364.0,0.13632608]
[1610377512773,0.10175,33402.0,33323.0,0.0877]
[1610377514577,0.10175,33402.0,33349.0,0.13632608]
[1610377514777,0.10175,33402.0,33349.0,0.07699]
[1610377516178,0.2715,33408.0,33349.0,0.07699]
[1610377516582,0.2715,33408.0,33397.0,0.13632608]
[1610377516778,0.09125,33433.0,33397.0,0.23657608]
[1610377517179,0.0904,33436.0,33397.0,0.10025]
[1610377518578,0.13632608,33398.0,33397.0,0.10025]
[1610377518978,0.13632608,33398.0,33375.0,0.13632608]
[1610377520279,1.0,33397.0,33375.0,0.13632608]
[1610377520680,0.13632608,33376.0,33375.0,0.13632608]
[1610377520880,0.13632608,33376.0,33349.0,0.07699]
[1610377521081,1.0,33397.0,33323.0,0.0877]
[1610377521281,1.5,33396.0,33321.0,2.10358306]
[1610377521481,1.5,33396.0,33308.0,2.10403978]
[1610377521884,0.2836,33395.0,33305.0,0.45709141]
[1610377522082,0.2836,33395.0,33296.0,2.10482838]
[1610377522282,1.0,33377.0,33296.0,2.10482838]
[1610377522683,1.0,33377.0,33294.0,2.1044626]
[1610377522883,1.0,33377.0,33342.0,0.13632608]
[1610377523082,1.0,33377.0,33342.0,0.09022]
[1610377523482,0.0889,33376.0,33342.0,0.09022]
[1610377523683,0.16898,33376.0,33342.0,0.09022]
[1610377524083,0.08008,33376.0,33342.0,0.09022]
[1610377525484,0.13632608,33343.0,33342.0,0.09022]
[1610377526687,0.13632608,33343.0,33288.0,2.10679495]
[1610377526888,0.08349,33355.0,33288.0,2.10679495]
[1610377527088,0.08349,33355.0,33292.0,0.13027]
[1610377527488,0.08349,33355.0,33334.0,0.13632608]
[1610377527687,0.0838,33363.0,33334.0,0.07664]
[1610377528288,1.0838,33363.0,33334.0,0.07664]
[1610377530089,1.0838,33363.0,33360.0,0.13632608]
[1610377530289,0.0838,33363.0,33360.0,0.21310608]
[1610377530491,0.13632608,33367.0,33360.0,0.21310608]
[1610377531291,0.2705,33371.0,33360.0,0.21310608]
[1610377531491,0.2705,33371.0,33360.0,0.07678]
[1610377532094,0.13632608,33361.0,33360.0,0.07678]
[1610377532293,0.2705,33371.0,33360.0,0.07678]
[1610377534096,0.13632608,33361.0,33360.0,0.07678]
[1610377534498,0.13632608,33361.0,33334.0,0.07664]
[1610377534699,0.13632608,33361.0,33310.0,2.12530105]
[1610377534898,0.13632608,33361.0,33303.0,2.12589289]
[1610377535500,0.13632608,33361.0,33300.0,2.12610311]
[1610377535700,0.13632608,33361.0,33304.0,2.12889742]
[1610377535900,0.13632608,33361.0,33304.0,2.21872742]
[1610377536100,0.13632608,33345.0,33330.0,0.13632608]
[1610377536500,0.03,33352.0,33330.0,0.13632608]
[1610377536900,0.03,33352.0,33330.0,0.23263608]
[1610377538200,0.13632608,33349.0,33345.0,0.13632608]
[1610377538401,0.03,33352.0,33330.0,0.09631]
[1610377540603,0.03,33352.0,33351.0,0.13632608]
[1610377540802,0.03,33352.0,33351.0,0.21617608]
[1610377541203,0.03,33352.0,33351.0,0.07985]
[1610377542607,0.03,33352.0,33351.0,0.21617608]
[1610377543005,0.03,33352.0,33351.0,0.07985]
[1610377544608,0.03,33352.0,33351.0,0.21617608]
[1610377546208,0.03,33352.0,33351.0,0.07985]
[1610377546409,0.03,33352.0,33330.0,0.09631]
[1610377546610,0.03,33352.0,33339.0,0.13632608]
[1610377546810,0.03,33352.0,33339.0,0.08759]
[1610377548712,0.13632608,33340.0,33339.0,0.08759]
[1610377550312,0.03,33352.0,33339.0,0.08759]
[1610377550710,0.03,33352.0,33351.0,0.13632608]
[1610377551110,0.03,33352.0,33350.0,0.09032]
[1610377552711,0.13632608,33351.0,33350.0,0.09032]
[1610377552914,0.03,33352.0,33350.0,0.09032]
[1610377554717,0.13632608,33351.0,33339.0,0.08759]
[1610377554918,0.03,33352.0,33339.0,0.08759]
[1610377555121,0.03,33352.0,33316.0,4.5809]
[1610377555321,0.03,33352.0,33339.0,0.0748]
[1610377557328,4.2273,33364.0,33339.0,0.0748]
[1610377557718,1.15901891,33419.0,33339.0,0.0748]
[1610377557920,1.46645936,33435.0,33350.0,2.15439525]
[1610377558122,1.46645936,33435.0,33351.0,1.5902]
[1610377558321,1.46645936,33435.0,33352.0,0.0903]
[1610377558521,0.1556,33445.0,33377.0,2.15221566]
[1610377558722,0.13632608,33429.0,33426.0,0.13632608]
[1610377558921,0.13632608,33429.0,33426.0,0.23226608]
[1610377559121,0.1556,33445.0,33426.0,0.23226608]
[1610377559923,0.1556,33445.0,33426.0,0.09594]
[1610377560726,0.13632608,33453.0,33444.0,0.13632608]
[1610377561125,0.13632608,33453.0,33441.0,0.07609]
[1610377562323,0.13632608,33453.0,33404.0,2.14010722]
[1610377562524,0.11011,33459.0,33402.0,2.13760118]
[1610377562724,0.11011,33459.0,33402.0,2.22476118]
[1610377562925,0.11011,33459.0,33402.0,0.08716]
[1610377563325,1.5,33458.0,33402.0,0.08716]
[1610377563524,0.13632608,33403.0,33402.0,0.08716]
[1610377563924,0.0891,33432.0,33402.0,0.08716]
[1610377564725,0.11011,33459.0,33402.0,0.08716]
[1610377564924,1.0,33467.0,33402.0,0.08716]
[1610377565325,1.5,33462.0,33402.0,0.08716]
[1610377565528,1.0,33467.0,33402.0,0.08716]
[1610377566328,0.1556,33481.0,33402.0,0.08716]
[1610377566728,0.1556,33481.0,33405.0,2.13311235]
[1610377566928,0.1556,33481.0,33413.0,2.13233068]
[1610377567128,0.1556,33481.0,33413.0,2.21313068]
[1610377567329,0.1556,33481.0,33414.0,2.12773318]
[1610377567528,0.13632608,33479.0,33467.0,0.13632608]
[1610377567930,0.3179,33512.0,33466.0,0.08127]
[1610377569529,0.3179,33512.0,33503.0,0.13632608]
[1610377569730,0.3179,33512.0,33497.0,0.11021]
[1610377570533,0.3179,33512.0,33497.0,0.09771]
[1610377571736,0.3179,33512.0,33502.0,0.13632608]
[1610377573337,0.1099,33513.0,33502.0,0.13632608]
[1610377573739,0.13632608,33503.0,33502.0,0.13632608]